[Event "Titled Tuesday Blitz May 9 Late 2023"]
[White "Kuznetsov, Felix"]
[Black "Ronka, Erik"]
[WhiteFideId "34147990"]
[BlackFideId "505080"]
[WhiteElo "2281"]
[BlackElo "2264"]
[Result "1-0"]
[Round "03"]
[TimeControl "180+2"]
[Date "2023.05.09"]
[WhiteClock "0:00:26"]
[BlackClock "0:00:05"]

1. f4 {[%clk 0:03:00]}  d5 {[%clk 0:02:43]} 2. Nf3 {[%clk 0:02:53]}  Nf6 {[%clk 0:02:39]} 3. g3 {[%clk 0:02:54]}  g6 {[%clk 0:02:39]} 4. Bg2 {[%clk 0:02:54]}  Bg7 {[%clk 0:02:40]} 5. O-O {[%clk 0:02:55]}  O-O {[%clk 0:02:40]} 6. d3 {[%clk 0:02:55]}  c5 {[%clk 0:02:41]} 7. Nc3 {[%clk 0:02:55]}  d4 {[%clk 0:02:40]} 8. Na4 {[%clk 0:02:55]}  Qc7 {[%clk 0:02:31]} 9. c4 {[%clk 0:02:54]}  Nbd7 {[%clk 0:02:21]} 10. a3 {[%clk 0:02:53]}  Nb6 {[%clk 0:02:15]} 11. b4 {[%clk 0:02:48]}  Nxa4 {[%clk 0:02:11]} 12. Qxa4 {[%clk 0:02:36]}  Nd7 {[%clk 0:02:11]} 13. Bd2 {[%clk 0:02:29]}  Bh6 {[%clk 0:01:46]} 14. Qc2 {[%clk 0:02:26]}  Rb8 {[%clk 0:01:42]} 15. f5 {[%clk 0:02:23]}  Bxd2 {[%clk 0:01:30]} 16. Qxd2 {[%clk 0:02:24]}  Ne5 {[%clk 0:01:31]} 17. fxg6 {[%clk 0:02:07]}  Nxf3+ {[%clk 0:01:18]} 18. Rxf3 {[%clk 0:02:00]}  hxg6 {[%clk 0:01:19]} 19. Qh6 {[%clk 0:01:57]}  Qe5 {[%clk 0:01:09]} 20. Raf1 {[%clk 0:01:29]}  Be6 {[%clk 0:01:02]} 21. Rf4 {[%clk 0:01:15]}  Qg7 {[%clk 0:00:58]} 22. Qxg7+ {[%clk 0:01:12]}  Kxg7 {[%clk 0:00:59]} 23. bxc5 {[%clk 0:01:12]}  Rfc8 {[%clk 0:00:48]} 24. Bd5 {[%clk 0:00:56]}  Bxd5 {[%clk 0:00:46]} 25. cxd5 {[%clk 0:00:57]}  f6 {[%clk 0:00:44]} 26. d6 {[%clk 0:00:54]}  Rxc5 {[%clk 0:00:31]} 27. dxe7 {[%clk 0:00:54]}  f5 {[%clk 0:00:29]} 28. Rxd4 {[%clk 0:00:53]}  Re8 {[%clk 0:00:29]} 29. Rd7 {[%clk 0:00:50]}  Re5 {[%clk 0:00:29]} 30. Rxb7 {[%clk 0:00:40]}  Rxe2 {[%clk 0:00:26]} 31. Rxa7 {[%clk 0:00:40]}  Rd2 {[%clk 0:00:26]} 32. Rd7 {[%clk 0:00:36]}  Kf7 {[%clk 0:00:25]} 33. Re1 {[%clk 0:00:35]}  Ra2 {[%clk 0:00:24]} 34. d4 {[%clk 0:00:35]}  Rxa3 {[%clk 0:00:20]} 35. d5 {[%clk 0:00:35]}  g5 {[%clk 0:00:14]} 36. d6 {[%clk 0:00:35]}  f4 {[%clk 0:00:15]} 37. gxf4 {[%clk 0:00:35]}  gxf4 {[%clk 0:00:14]} 38. Rd8 {[%clk 0:00:35]}  Ra7 {[%clk 0:00:02]} 39. Rxe8 {[%clk 0:00:33]}  Kxe8 {[%clk 0:00:03]} 40. Kf2 {[%clk 0:00:29]}  Rd7 {[%clk 0:00:03]} 41. Re6 {[%clk 0:00:28]}  Rb7 {[%clk 0:00:02]} 42. Kf3 {[%clk 0:00:28]}  Rd7 {[%clk 0:00:01]} 43. Kxf4 {[%clk 0:00:29]}  Rb7 {[%clk 0:00:02]} 44. Ke5 {[%clk 0:00:29]}  Rd7 {[%clk 0:00:02]} 45. Rh6 {[%clk 0:00:28]}  Ra7 {[%clk 0:00:03]} 46. Rh8+ {[%clk 0:00:26]}  Kf7 {[%clk 0:00:04]} 47. e8=Q+ {[%clk 0:00:26]}  Kg7 {[%clk 0:00:05]} 48. Qg8# {[%clk 0:00:26]} 1-0


[Site "https://www.chess.com"]

[Event "Titled Tuesday Blitz May 9 Late 2023"]
[White "Bluebaum, Matthias"]
[Black "Hjartarson, Johann"]
[WhiteFideId "24651516"]
[BlackFideId "2300044"]
[WhiteElo "2639"]
[BlackElo "2407"]
[Result "1/2-1/2"]
[Round "03"]
[TimeControl "180+2"]
[Date "2023.05.09"]
[WhiteClock "0:00:07"]
[BlackClock "0:00:11"]

1. d4 {[%clk 0:03:00]}  Nf6 {[%clk 0:02:59]} 2. c4 {[%clk 0:03:01]}  e6 {[%clk 0:02:58]} 3. Nc3 {[%clk 0:03:01]}  Bb4 {[%clk 0:02:57]} 4. e3 {[%clk 0:03:02]}  O-O {[%clk 0:02:57]} 5. Bd2 {[%clk 0:03:03]}  d5 {[%clk 0:02:56]} 6. Nf3 {[%clk 0:03:03]}  Nbd7 {[%clk 0:02:55]} 7. Rc1 {[%clk 0:03:03]}  c6 {[%clk 0:02:54]} 8. Bd3 {[%clk 0:03:03]}  Re8 {[%clk 0:02:53]} 9. O-O {[%clk 0:03:03]}  Bd6 {[%clk 0:02:50]} 10. e4 {[%clk 0:03:03]}  dxe4 {[%clk 0:02:50]} 11. Nxe4 {[%clk 0:03:04]}  Nxe4 {[%clk 0:02:49]} 12. Bxe4 {[%clk 0:03:04]}  Nf6 {[%clk 0:02:49]} 13. Bb1 {[%clk 0:03:03]}  c5 {[%clk 0:02:48]} 14. Bg5 {[%clk 0:03:03]}  h6 {[%clk 0:02:46]} 15. Bh4 {[%clk 0:03:01]}  cxd4 {[%clk 0:02:42]} 16. Qxd4 {[%clk 0:02:54]}  e5 {[%clk 0:02:38]} 17. Qc3 {[%clk 0:02:49]}  Qe7 {[%clk 0:02:27]} 18. Rfe1 {[%clk 0:02:42]}  Bb4 {[%clk 0:02:22]} 19. Qc2 {[%clk 0:02:04]}  Bxe1 {[%clk 0:02:19]} 20. Bxf6 {[%clk 0:02:04]}  Qxf6 {[%clk 0:02:17]} 21. Qh7+ {[%clk 0:02:05]}  Kf8 {[%clk 0:02:16]} 22. Rxe1 {[%clk 0:02:06]}  g6 {[%clk 0:02:14]} 23. Qxh6+ {[%clk 0:02:05]}  Qg7 {[%clk 0:02:12]} 24. Qe3 {[%clk 0:02:01]}  Kg8 {[%clk 0:02:03]} 25. Be4 {[%clk 0:01:59]}  f6 {[%clk 0:01:47]} 26. Qd3 {[%clk 0:01:53]}  Be6 {[%clk 0:01:41]} 27. Bxg6 {[%clk 0:01:49]}  Red8 {[%clk 0:01:35]} 28. Qe4 {[%clk 0:01:50]}  Rac8 {[%clk 0:01:34]} 29. b3 {[%clk 0:01:48]}  Rc7 {[%clk 0:01:29]} 30. h4 {[%clk 0:01:35]}  Rcd7 {[%clk 0:01:27]} 31. Kh2 {[%clk 0:01:34]}  Rd4 {[%clk 0:01:12]} 32. Nxd4 {[%clk 0:01:08]}  Rxd4 {[%clk 0:01:11]} 33. Bf5 {[%clk 0:01:09]}  Bxc4 {[%clk 0:00:56]} 34. Qf3 {[%clk 0:00:55]}  Bd5 {[%clk 0:00:55]} 35. Qg3 {[%clk 0:00:51]}  Rxh4+ {[%clk 0:00:52]} 36. Bh3 {[%clk 0:00:42]}  Qxg3+ {[%clk 0:00:51]} 37. Kxg3 {[%clk 0:00:43]}  Rd4 {[%clk 0:00:51]} 38. Rc1 {[%clk 0:00:43]}  Bc6 {[%clk 0:00:51]} 39. Rc2 {[%clk 0:00:35]}  Kf7 {[%clk 0:00:46]} 40. Bc8 {[%clk 0:00:34]}  Kg6 {[%clk 0:00:44]} 41. f3 {[%clk 0:00:33]}  f5 {[%clk 0:00:41]} 42. Be6 {[%clk 0:00:23]}  Kg5 {[%clk 0:00:39]} 43. Bc4 {[%clk 0:00:23]}  Rd1 {[%clk 0:00:32]} 44. Be2 {[%clk 0:00:22]}  Rd4 {[%clk 0:00:29]} 45. Kf2 {[%clk 0:00:22]}  f4 {[%clk 0:00:27]} 46. a3 {[%clk 0:00:18]}  Kf6 {[%clk 0:00:23]} 47. b4 {[%clk 0:00:18]}  Ke7 {[%clk 0:00:18]} 48. b5 {[%clk 0:00:18]}  Bd5 {[%clk 0:00:19]} 49. Rc7+ {[%clk 0:00:08]}  Kd6 {[%clk 0:00:19]} 50. Rh7 {[%clk 0:00:08]}  Ra4 {[%clk 0:00:18]} 51. Rh6+ {[%clk 0:00:08]}  Kc5 {[%clk 0:00:18]} 52. g3 {[%clk 0:00:02]}  fxg3+ {[%clk 0:00:17]} 53. Kxg3 {[%clk 0:00:03]}  Rxa3 {[%clk 0:00:18]} 54. Rh5 {[%clk 0:00:04]}  Kd4 {[%clk 0:00:17]} 55. Kf2 {[%clk 0:00:04]}  a5 {[%clk 0:00:14]} 56. bxa6 {[%clk 0:00:05]}  bxa6 {[%clk 0:00:14]} 57. Rh8 {[%clk 0:00:06]}  a5 {[%clk 0:00:13]} 58. Rd8 {[%clk 0:00:06]}  Ra2 {[%clk 0:00:13]} 59. Ke1 {[%clk 0:00:05]}  Ke3 {[%clk 0:00:12]} 60. Rxd5 {[%clk 0:00:02]}  Rxe2+ {[%clk 0:00:11]} 61. Kd1 {[%clk 0:00:03]}  Kxf3 {[%clk 0:00:12]} 62. Rxa5 {[%clk 0:00:03]}  e4 {[%clk 0:00:11]} 63. Ra8 {[%clk 0:00:03]}  Rb2 {[%clk 0:00:11]} 64. Rf8+ {[%clk 0:00:01]}  Ke3 {[%clk 0:00:11]} 65. Re8 {[%clk 0:00:02]}  Rb1+ {[%clk 0:00:11]} 66. Kc2 {[%clk 0:00:03]}  Rh1 {[%clk 0:00:11]} 67. Re7 {[%clk 0:00:03]}  Kf3 {[%clk 0:00:11]} 68. Kd2 {[%clk 0:00:04]}  Rh2+ {[%clk 0:00:11]} 69. Ke1 {[%clk 0:00:04]}  Ke3 {[%clk 0:00:11]} 70. Kd1 {[%clk 0:00:04]}  Ra2 {[%clk 0:00:11]} 71. Re8 {[%clk 0:00:03]}  Ra1+ {[%clk 0:00:11]} 72. Kc2 {[%clk 0:00:04]}  Re1 {[%clk 0:00:11]} 73. Re7 {[%clk 0:00:04]}  Kf3 {[%clk 0:00:11]} 74. Kd2 {[%clk 0:00:05]}  Re2+ {[%clk 0:00:11]} 75. Kd1 {[%clk 0:00:05]}  Ke3 {[%clk 0:00:11]} 76. Rxe4+ {[%clk 0:00:06]}  Kxe4 {[%clk 0:00:11]} 77. Kxe2 {[%clk 0:00:07]} 1/2-1/2


[Site "https://www.chess.com"]

[Event "Titled Tuesday Blitz May 9 Late 2023"]
[White "Schnaider, Ilan"]
[Black "Peng, Li Min"]
[WhiteFideId "169013"]
[BlackFideId "14112620"]
[WhiteElo "2224"]
[BlackElo "2436"]
[Result "0-1"]
[Round "03"]
[TimeControl "180+2"]
[Date "2023.05.09"]
[WhiteClock "0:00:07"]
[BlackClock "0:00:05"]

1. e4 {[%clk 0:03:00]}  Nc6 {[%clk 0:03:00]} 2. Bc4 {[%clk 0:02:55]}  e6 {[%clk 0:02:59]} 3. Nf3 {[%clk 0:02:51]}  d5 {[%clk 0:02:59]} 4. exd5 {[%clk 0:02:50]}  exd5 {[%clk 0:02:59]} 5. Be2 {[%clk 0:02:42]}  Bd6 {[%clk 0:02:59]} 6. d4 {[%clk 0:02:42]}  h6 {[%clk 0:02:58]} 7. O-O {[%clk 0:02:41]}  Nf6 {[%clk 0:02:58]} 8. Re1 {[%clk 0:02:34]}  O-O {[%clk 0:02:58]} 9. h3 {[%clk 0:02:33]}  Bf5 {[%clk 0:02:56]} 10. Bd3 {[%clk 0:02:33]}  Bxd3 {[%clk 0:02:55]} 11. Qxd3 {[%clk 0:02:32]}  Re8 {[%clk 0:02:53]} 12. Be3 {[%clk 0:02:30]}  a5 {[%clk 0:02:49]} 13. c3 {[%clk 0:02:29]}  a4 {[%clk 0:02:48]} 14. Nbd2 {[%clk 0:02:28]}  Qd7 {[%clk 0:02:43]} 15. b3 {[%clk 0:02:26]}  a3 {[%clk 0:02:37]} 16. c4 {[%clk 0:02:13]}  Nb4 {[%clk 0:02:36]} 17. Qb1 {[%clk 0:02:13]}  Ne4 {[%clk 0:02:25]} 18. c5 {[%clk 0:01:47]}  Bf8 {[%clk 0:01:52]} 19. Ne5 {[%clk 0:01:33]}  Rxe5 {[%clk 0:01:46]} 20. dxe5 {[%clk 0:01:31]}  Nc3 {[%clk 0:01:47]} 21. Qc1 {[%clk 0:01:30]}  d4 {[%clk 0:01:47]} 22. Nf3 {[%clk 0:01:12]}  dxe3 {[%clk 0:01:38]} 23. Qxc3 {[%clk 0:01:01]}  exf2+ {[%clk 0:01:39]} 24. Kxf2 {[%clk 0:01:02]}  Nd3+ {[%clk 0:01:40]} 25. Kg1 {[%clk 0:01:01]}  Nxe1 {[%clk 0:01:40]} 26. Rxe1 {[%clk 0:01:00]}  Qd5 {[%clk 0:01:40]} 27. Rc1 {[%clk 0:00:55]}  b6 {[%clk 0:01:07]} 28. cxb6 {[%clk 0:00:53]}  cxb6 {[%clk 0:01:08]} 29. Kh1 {[%clk 0:00:45]}  Rd8 {[%clk 0:01:06]} 30. Qc7 {[%clk 0:00:31]}  b5 {[%clk 0:01:03]} 31. Rf1 {[%clk 0:00:25]}  Re8 {[%clk 0:00:59]} 32. Re1 {[%clk 0:00:17]}  b4 {[%clk 0:00:59]} 33. Qc2 {[%clk 0:00:16]}  Rd8 {[%clk 0:00:57]} 34. Rf1 {[%clk 0:00:15]}  Bc5 {[%clk 0:00:46]} 35. Rc1 {[%clk 0:00:11]}  Be3 {[%clk 0:00:44]} 36. Re1 {[%clk 0:00:11]}  Qd3 {[%clk 0:00:27]} 37. Qc7 {[%clk 0:00:08]}  Bf2 {[%clk 0:00:20]} 38. Rc1 {[%clk 0:00:07]}  Bg3 {[%clk 0:00:21]} 39. Rg1 {[%clk 0:00:05]}  Re8 {[%clk 0:00:20]} 40. Qc6 {[%clk 0:00:05]}  Re6 {[%clk 0:00:18]} 41. Qc8+ {[%clk 0:00:04]}  Kh7 {[%clk 0:00:19]} 42. Qc1 {[%clk 0:00:05]}  Bxe5 {[%clk 0:00:14]} 43. Rd1 {[%clk 0:00:05]}  Qf5 {[%clk 0:00:13]} 44. Re1 {[%clk 0:00:05]}  Bf6 {[%clk 0:00:12]} 45. Rf1 {[%clk 0:00:01]}  Bb2 {[%clk 0:00:12]} 46. Qd1 {[%clk 0:00:01]}  Rf6 {[%clk 0:00:12]} 47. Nd2 {[%clk 0:00:01]}  Qg6 {[%clk 0:00:12]} 48. Rxf6 {[%clk 0:00:02]}  Bxf6 {[%clk 0:00:09]} 49. Nf3 {[%clk 0:00:02]}  Qe4 {[%clk 0:00:08]} 50. Kh2 {[%clk 0:00:02]}  g5 {[%clk 0:00:06]} 51. Kh1 {[%clk 0:00:02]}  h5 {[%clk 0:00:06]} 52. Nh2 {[%clk 0:00:01]}  Kg6 {[%clk 0:00:05]} 53. Nf1 {[%clk 0:00:01]}  Bd4 {[%clk 0:00:05]} 54. Ng3 {[%clk 0:00:01]}  Qe5 {[%clk 0:00:04]} 55. Qxh5+ {[%clk 0:00:02]}  Kg7 {[%clk 0:00:03]} 56. Qf3 {[%clk 0:00:01]}  Qe1+ {[%clk 0:00:03]} 57. Nf1 {[%clk 0:00:02]}  Be5 {[%clk 0:00:01]} 58. Qf5 {[%clk 0:00:02]}  Bf6 {[%clk 0:00:01]} 59. Qf3 {[%clk 0:00:02]}  Qa1 {[%clk 0:00:01]} 60. Qf2 {[%clk 0:00:02]}  Qb2 {[%clk 0:00:01]} 61. Qf3 {[%clk 0:00:01]}  Qxa2 {[%clk 0:00:02]} 62. Ng3 {[%clk 0:00:02]}  Qa1+ {[%clk 0:00:02]} 63. Nf1 {[%clk 0:00:02]}  Qe5 {[%clk 0:00:03]} 64. h4 {[%clk 0:00:02]}  gxh4 {[%clk 0:00:03]} 65. Ne3 {[%clk 0:00:03]}  Qg5 {[%clk 0:00:03]} 66. Nf5+ {[%clk 0:00:04]}  Kg6 {[%clk 0:00:03]} 67. Nd6 {[%clk 0:00:04]}  Qc1+ {[%clk 0:00:02]} 68. Qf1 {[%clk 0:00:04]}  Qxf1+ {[%clk 0:00:02]} 69. Kh2 {[%clk 0:00:05]}  Be5+ {[%clk 0:00:03]} 70. Kh3 {[%clk 0:00:06]}  Qh1+ {[%clk 0:00:03]} 71. Kg4 {[%clk 0:00:07]}  Qxg2+ {[%clk 0:00:04]} 72. Kxh4 {[%clk 0:00:07]}  Qg3# {[%clk 0:00:05]} 0-1


[Site "https://www.chess.com"]

[Event "Titled Tuesday Blitz May 9 Late 2023"]
[White "Kollars, Dmitrij"]
[Black "Omranalhosani21"]
[WhiteFideId "12909572"]
[WhiteElo "2584"]
[BlackElo "2610"]
[Result "1-0"]
[Round "03"]
[TimeControl "180+2"]
[Date "2023.05.09"]
[WhiteClock "0:01:26"]
[BlackClock "0:00:00"]

1. Nf3 {[%clk 0:03:00]}  d5 {[%clk 0:02:58]} 2. g3 {[%clk 0:03:01]}  Nd7 {[%clk 0:02:58]} 3. d4 {[%clk 0:03:00]}  Nb6 {[%clk 0:02:59]} 4. Nc3 {[%clk 0:02:59]}  Bf5 {[%clk 0:02:58]} 5. a4 {[%clk 0:02:59]}  a5 {[%clk 0:02:53]} 6. Nh4 {[%clk 0:03:00]}  e6 {[%clk 0:02:51]} 7. Nxf5 {[%clk 0:02:57]}  exf5 {[%clk 0:02:51]} 8. Bh3 {[%clk 0:02:58]}  g6 {[%clk 0:02:49]} 9. O-O {[%clk 0:02:59]}  Bg7 {[%clk 0:02:49]} 10. Bg2 {[%clk 0:02:57]}  Nf6 {[%clk 0:02:48]} 11. Bg5 {[%clk 0:02:57]}  O-O {[%clk 0:02:46]} 12. e3 {[%clk 0:02:56]}  c6 {[%clk 0:02:44]} 13. Qd3 {[%clk 0:02:55]}  Nc4 {[%clk 0:02:43]} 14. b3 {[%clk 0:02:54]}  Nd6 {[%clk 0:02:43]} 15. Ne2 {[%clk 0:02:49]}  Nde4 {[%clk 0:02:27]} 16. Bxf6 {[%clk 0:02:49]}  Bxf6 {[%clk 0:02:21]} 17. c4 {[%clk 0:02:47]}  Qb6 {[%clk 0:02:11]} 18. Rfc1 {[%clk 0:02:37]}  Bg7 {[%clk 0:02:04]} 19. Rc2 {[%clk 0:02:36]}  Rfc8 {[%clk 0:01:45]} 20. Rac1 {[%clk 0:02:34]}  Qd8 {[%clk 0:01:44]} 21. Nf4 {[%clk 0:02:28]}  dxc4 {[%clk 0:01:05]} 22. bxc4 {[%clk 0:02:23]}  Nf6 {[%clk 0:00:59]} 23. Rb1 {[%clk 0:02:21]}  Rc7 {[%clk 0:00:58]} 24. Rcb2 {[%clk 0:02:20]}  Qc8 {[%clk 0:00:51]} 25. Rb3 {[%clk 0:02:01]}  Nd7 {[%clk 0:00:49]} 26. c5 {[%clk 0:01:53]}  Rb8 {[%clk 0:00:34]} 27. Qc3 {[%clk 0:01:53]}  Ra8 {[%clk 0:00:31]} 28. h4 {[%clk 0:01:52]}  h6 {[%clk 0:00:25]} 29. Qc4 {[%clk 0:01:52]}  Nf8 {[%clk 0:00:20]} 30. d5 {[%clk 0:01:49]}  Be5 {[%clk 0:00:15]} 31. d6 {[%clk 0:01:41]}  Rd7 {[%clk 0:00:15]} 32. Nd3 {[%clk 0:01:37]}  Bf6 {[%clk 0:00:14]} 33. h5 {[%clk 0:01:38]}  Kg7 {[%clk 0:00:14]} 34. hxg6 {[%clk 0:01:34]}  fxg6 {[%clk 0:00:13]} 35. e4 {[%clk 0:01:34]}  fxe4 {[%clk 0:00:11]} 36. Qxe4 {[%clk 0:01:34]}  Rb8 {[%clk 0:00:06]} 37. Bh3 {[%clk 0:01:33]}  Qd8 {[%clk 0:00:04]} 38. Bxd7 {[%clk 0:01:33]}  Qxd7 {[%clk 0:00:05]} 39. Nf4 {[%clk 0:01:32]}  Bg5 {[%clk 0:00:03]} 40. Re1 {[%clk 0:01:29]}  Bxf4 {[%clk 0:00:03]} 41. Qxf4 {[%clk 0:01:28]}  Ne6 {[%clk 0:00:00]} 42. Qe5+ {[%clk 0:01:26]} 1-0


[Site "https://www.chess.com"]

[Event "Titled Tuesday Blitz May 9 Late 2023"]
[White "Rasulov, Vugar"]
[Black "Taboas Rodriguez, Daniel"]
[WhiteFideId "13402390"]
[BlackFideId "2208466"]
[WhiteElo "2509"]
[BlackElo "2365"]
[Result "1-0"]
[Round "03"]
[TimeControl "180+2"]
[Date "2023.05.09"]
[WhiteClock "0:01:51"]
[BlackClock "0:00:18"]

1. d4 {[%clk 0:03:00]}  Nf6 {[%clk 0:02:59]} 2. c4 {[%clk 0:03:00]}  g6 {[%clk 0:02:59]} 3. Nc3 {[%clk 0:03:00]}  Bg7 {[%clk 0:03:00]} 4. e4 {[%clk 0:03:00]}  d6 {[%clk 0:03:00]} 5. h3 {[%clk 0:03:00]}  O-O {[%clk 0:03:00]} 6. Be3 {[%clk 0:03:01]}  Nc6 {[%clk 0:02:59]} 7. Nf3 {[%clk 0:03:00]}  e5 {[%clk 0:02:58]} 8. d5 {[%clk 0:03:00]}  Nd4 {[%clk 0:02:58]} 9. Bd3 {[%clk 0:02:55]}  Nh5 {[%clk 0:02:51]} 10. O-O {[%clk 0:02:48]}  Nxf3+ {[%clk 0:02:44]} 11. Qxf3 {[%clk 0:02:47]}  f5 {[%clk 0:02:44]} 12. exf5 {[%clk 0:02:47]}  Bxf5 {[%clk 0:02:45]} 13. Bxf5 {[%clk 0:02:45]}  Rxf5 {[%clk 0:02:45]} 14. Qg4 {[%clk 0:02:42]}  Nf4 {[%clk 0:02:41]} 15. Bxf4 {[%clk 0:02:33]}  Rxf4 {[%clk 0:02:39]} 16. Qe2 {[%clk 0:02:33]}  Qd7 {[%clk 0:02:35]} 17. Ne4 {[%clk 0:02:31]}  Raf8 {[%clk 0:02:35]} 18. f3 {[%clk 0:02:31]}  b6 {[%clk 0:02:31]} 19. b4 {[%clk 0:02:30]}  Bh6 {[%clk 0:02:24]} 20. Qd3 {[%clk 0:02:21]}  Rh4 {[%clk 0:01:54]} 21. c5 {[%clk 0:02:15]}  dxc5 {[%clk 0:01:44]} 22. bxc5 {[%clk 0:02:16]}  bxc5 {[%clk 0:01:44]} 23. Nxc5 {[%clk 0:02:07]}  Qf5 {[%clk 0:01:30]} 24. Ne4 {[%clk 0:02:07]}  Rd8 {[%clk 0:01:12]} 25. Rab1 {[%clk 0:02:05]}  Qf4 {[%clk 0:00:49]} 26. Rfe1 {[%clk 0:01:59]}  Bf8 {[%clk 0:00:42]} 27. g3 {[%clk 0:01:55]}  Bc5+ {[%clk 0:00:18]} 28. Kg2 {[%clk 0:01:51]} 1-0


[Site "https://www.chess.com"]

[Event "Titled Tuesday Blitz May 9 Late 2023"]
[White "Ozates, Tuna"]
[Black "Mekhitarian, Krikor Sevag"]
[WhiteFideId "6354521"]
[BlackFideId "2107660"]
[WhiteElo "2151"]
[BlackElo "2604"]
[Result "0-1"]
[Round "03"]
[TimeControl "180+2"]
[Date "2023.05.09"]
[WhiteClock "0:00:01"]
[BlackClock "0:00:05"]

1. e4 {[%clk 0:03:00]}  e6 {[%clk 0:02:59]} 2. d4 {[%clk 0:03:00]}  d5 {[%clk 0:03:00]} 3. exd5 {[%clk 0:03:01]}  exd5 {[%clk 0:03:00]} 4. Bd3 {[%clk 0:03:02]}  Nc6 {[%clk 0:02:58]} 5. c3 {[%clk 0:03:02]}  Bd6 {[%clk 0:02:58]} 6. Qf3 {[%clk 0:03:00]}  Nge7 {[%clk 0:02:58]} 7. Bf4 {[%clk 0:03:00]}  Be6 {[%clk 0:02:53]} 8. Ne2 {[%clk 0:03:00]}  Qd7 {[%clk 0:02:51]} 9. h3 {[%clk 0:03:00]}  O-O-O {[%clk 0:02:46]} 10. Nd2 {[%clk 0:03:00]}  f6 {[%clk 0:02:45]} 11. O-O-O {[%clk 0:03:00]}  Ng6 {[%clk 0:02:37]} 12. Bxd6 {[%clk 0:02:58]}  Qxd6 {[%clk 0:02:38]} 13. g3 {[%clk 0:02:57]}  Rde8 {[%clk 0:02:34]} 14. h4 {[%clk 0:02:56]}  Qd7 {[%clk 0:02:19]} 15. Qg2 {[%clk 0:02:46]}  Bg4 {[%clk 0:02:09]} 16. f3 {[%clk 0:02:45]}  Bf5 {[%clk 0:02:08]} 17. Bb5 {[%clk 0:02:35]}  Kb8 {[%clk 0:01:46]} 18. Nb3 {[%clk 0:02:28]}  a6 {[%clk 0:01:37]} 19. Nc5 {[%clk 0:02:27]}  Qd6 {[%clk 0:01:37]} 20. Ba4 {[%clk 0:02:20]}  Re7 {[%clk 0:01:31]} 21. h5 {[%clk 0:02:17]}  Nf8 {[%clk 0:01:30]} 22. Nf4 {[%clk 0:02:08]}  Nd7 {[%clk 0:01:16]} 23. Qf2 {[%clk 0:01:58]}  Nb6 {[%clk 0:01:13]} 24. Bb3 {[%clk 0:01:53]}  Rhe8 {[%clk 0:01:06]} 25. Rhe1 {[%clk 0:01:51]}  Na5 {[%clk 0:01:04]} 26. Rxe7 {[%clk 0:01:45]}  Rxe7 {[%clk 0:00:44]} 27. Re1 {[%clk 0:01:37]}  Nac4 {[%clk 0:00:28]} 28. Rxe7 {[%clk 0:01:27]}  Qxe7 {[%clk 0:00:28]} 29. Nxd5 {[%clk 0:01:23]}  Nxd5 {[%clk 0:00:28]} 30. Bxc4 {[%clk 0:01:24]}  Qe3+ {[%clk 0:00:09]} 31. Qxe3 {[%clk 0:01:21]}  Nxe3 {[%clk 0:00:10]} 32. Be2 {[%clk 0:01:15]}  a5 {[%clk 0:00:07]} 33. g4 {[%clk 0:01:11]}  Bc8 {[%clk 0:00:07]} 34. Kd2 {[%clk 0:01:09]}  Nd5 {[%clk 0:00:07]} 35. Nd3 {[%clk 0:01:04]}  c6 {[%clk 0:00:04]} 36. c4 {[%clk 0:01:03]}  Nc7 {[%clk 0:00:03]} 37. Nf4 {[%clk 0:00:56]}  h6 {[%clk 0:00:03]} 38. Bd3 {[%clk 0:00:55]}  Ne6 {[%clk 0:00:03]} 39. Nxe6 {[%clk 0:00:53]}  Bxe6 {[%clk 0:00:04]} 40. Kc3 {[%clk 0:00:43]}  b6 {[%clk 0:00:04]} 41. Be4 {[%clk 0:00:41]}  c5 {[%clk 0:00:04]} 42. d5 {[%clk 0:00:32]}  Bd7 {[%clk 0:00:03]} 43. Kd3 {[%clk 0:00:26]}  Kc7 {[%clk 0:00:03]} 44. Ke3 {[%clk 0:00:26]}  Kd6 {[%clk 0:00:03]} 45. Kf4 {[%clk 0:00:27]}  Bc8 {[%clk 0:00:03]} 46. Bf5 {[%clk 0:00:26]}  Ba6 {[%clk 0:00:03]} 47. b3 {[%clk 0:00:26]}  b5 {[%clk 0:00:04]} 48. Bd3 {[%clk 0:00:26]}  bxc4 {[%clk 0:00:04]} 49. bxc4 {[%clk 0:00:26]}  Bc8 {[%clk 0:00:05]} 50. Ke3 {[%clk 0:00:15]}  Ke7 {[%clk 0:00:05]} 51. Bf5 {[%clk 0:00:14]}  Ba6 {[%clk 0:00:05]} 52. Kd3 {[%clk 0:00:14]}  Kd6 {[%clk 0:00:06]} 53. f4 {[%clk 0:00:14]}  Bb7 {[%clk 0:00:06]} 54. Kc3 {[%clk 0:00:15]}  Ba6 {[%clk 0:00:06]} 55. Bc2 {[%clk 0:00:14]}  Bc8 {[%clk 0:00:07]} 56. Bf5 {[%clk 0:00:13]}  Ba6 {[%clk 0:00:05]} 57. Kb3 {[%clk 0:00:13]}  Kc7 {[%clk 0:00:05]} 58. Bd3 {[%clk 0:00:11]}  Bc8 {[%clk 0:00:05]} 59. Bf5 {[%clk 0:00:09]}  Ba6 {[%clk 0:00:05]} 60. Be6 {[%clk 0:00:08]}  Kd6 {[%clk 0:00:03]} 61. Kc3 {[%clk 0:00:08]}  Kc7 {[%clk 0:00:03]} 62. Kd3 {[%clk 0:00:08]}  Kd6 {[%clk 0:00:04]} 63. Kc3 {[%clk 0:00:08]}  Kc7 {[%clk 0:00:04]} 64. a3 {[%clk 0:00:08]}  Kd6 {[%clk 0:00:05]} 65. Bf5 {[%clk 0:00:07]}  Kc7 {[%clk 0:00:05]} 66. Bd3 {[%clk 0:00:07]}  Bc8 {[%clk 0:00:05]} 67. Bf5 {[%clk 0:00:06]}  Ba6 {[%clk 0:00:05]} 68. Kd3 {[%clk 0:00:07]}  Kd6 {[%clk 0:00:05]} 69. Bg6 {[%clk 0:00:06]}  Bc8 {[%clk 0:00:05]} 70. f5 {[%clk 0:00:07]}  Bd7 {[%clk 0:00:05]} 71. Bf7 {[%clk 0:00:07]}  Ba4 {[%clk 0:00:05]} 72. Kc3 {[%clk 0:00:04]}  Bd1 {[%clk 0:00:05]} 73. Bg6 {[%clk 0:00:04]}  Bxg4 {[%clk 0:00:05]} 74. Kb3 {[%clk 0:00:04]}  Bd1+ {[%clk 0:00:05]} 75. Kc3 {[%clk 0:00:05]}  Ba4 {[%clk 0:00:05]} 76. Kd3 {[%clk 0:00:06]}  Ke5 {[%clk 0:00:04]} 77. Kc3 {[%clk 0:00:06]}  Bd7 {[%clk 0:00:04]} 78. Kb3 {[%clk 0:00:03]}  Kd4 {[%clk 0:00:04]} 79. d6 {[%clk 0:00:03]}  Ke5 {[%clk 0:00:04]} 80. Kc3 {[%clk 0:00:01]}  Kxd6 {[%clk 0:00:04]} 81. Kd3 {[%clk 0:00:02]}  Ke5 {[%clk 0:00:05]} 82. Ke3 {[%clk 0:00:01]}  Bxf5 {[%clk 0:00:05]} 0-1


[Site "https://www.chess.com"]